[Event "Titled Tuesday Blitz July 18 Late 2023"]
[White "Priasmoro, Novendra"]
[Black "Arnold, Ken"]
[WhiteFideId "7105029"]
[BlackFideId "2056836"]
[WhiteElo "2760"]
[BlackElo "2429"]
[Result "1-0"]
[Round "1"]
[TimeControl "180+2"]
[Date "2023.07.18"]
[WhiteClock "0:01:46"]
[BlackClock "0:00:00"]
[Board "56"]

1. e4 {[%clk 0:02:55]}  c6 {[%clk 0:02:59]} 2. d4 {[%clk 0:02:45]}  d5 {[%clk 0:02:55]} 3. e5 {[%clk 0:02:42]}  Bf5 {[%clk 0:02:55]} 4. Nf3 {[%clk 0:02:39]}  e6 {[%clk 0:02:52]} 5. Be2 {[%clk 0:02:40]}  Nd7 {[%clk 0:02:49]} 6. O-O {[%clk 0:02:38]}  Ne7 {[%clk 0:02:49]} 7. Nbd2 {[%clk 0:02:37]}  Bg6 {[%clk 0:02:49]} 8. Nb3 {[%clk 0:02:37]}  Nf5 {[%clk 0:02:48]} 9. a4 {[%clk 0:02:37]}  Be7 {[%clk 0:02:46]} 10. a5 {[%clk 0:02:37]}  a6 {[%clk 0:02:44]} 11. c3 {[%clk 0:02:36]}  c5 {[%clk 0:02:42]} 12. dxc5 {[%clk 0:02:24]}  Nxc5 {[%clk 0:02:40]} 13. Nxc5 {[%clk 0:02:18]}  Bxc5 {[%clk 0:02:40]} 14. Bg5 {[%clk 0:02:18]}  Be7 {[%clk 0:02:28]} 15. Qa4+ {[%clk 0:02:10]}  Qd7 {[%clk 0:02:25]} 16. g4 {[%clk 0:02:05]}  Qxa4 {[%clk 0:02:19]} 17. Rxa4 {[%clk 0:02:06]}  Nh6 {[%clk 0:02:04]} 18. Bxe7 {[%clk 0:02:06]}  Kxe7 {[%clk 0:02:03]} 19. Rb4 {[%clk 0:02:07]}  Rab8 {[%clk 0:01:58]} 20. Nd4 {[%clk 0:02:07]}  Rhc8 {[%clk 0:01:50]} 21. h4 {[%clk 0:02:06]}  f5 {[%clk 0:01:34]} 22. Rb6 {[%clk 0:01:59]}  Bf7 {[%clk 0:01:29]} 23. g5 {[%clk 0:01:58]}  Ng8 {[%clk 0:01:19]} 24. Ra1 {[%clk 0:01:57]}  Rc5 {[%clk 0:00:45]} 25. Ra3 {[%clk 0:01:56]}  Kd7 {[%clk 0:00:36]} 26. Rd6+ {[%clk 0:01:55]}  Ke7 {[%clk 0:00:29]} 27. Rb3 {[%clk 0:01:55]}  Rbc8 {[%clk 0:00:05]} 28. Rxb7+ {[%clk 0:01:54]}  R5c7 {[%clk 0:00:00]} 29. Nc6+ {[%clk 0:01:46]} 1-0


[Site "https://www.chess.com"]

[Event "Titled Tuesday Blitz July 18 Late 2023"]
[White "ArchibaldCerveza29"]
[Black "Matinian, Nikita"]
[BlackFideId "24129100"]
[WhiteElo "2428"]
[BlackElo "2748"]
[Result "0-1"]
[Round "1"]
[TimeControl "180+2"]
[Date "2023.07.18"]
[WhiteClock "0:00:00"]
[BlackClock "0:00:22"]
[Board "57"]

1. e4 {[%clk 0:02:59]}  c5 {[%clk 0:03:00]} 2. c3 {[%clk 0:02:57]}  Nf6 {[%clk 0:02:59]} 3. e5 {[%clk 0:02:57]}  Nd5 {[%clk 0:03:00]} 4. d4 {[%clk 0:02:58]}  Nc6 {[%clk 0:02:59]} 5. Nf3 {[%clk 0:02:58]}  cxd4 {[%clk 0:02:57]} 6. Bc4 {[%clk 0:02:57]}  Nb6 {[%clk 0:02:55]} 7. Bb3 {[%clk 0:02:57]}  d5 {[%clk 0:02:55]} 8. exd6 {[%clk 0:02:57]}  Qxd6 {[%clk 0:02:55]} 9. O-O {[%clk 0:02:56]}  g6 {[%clk 0:02:55]} 10. cxd4 {[%clk 0:02:28]}  Bg7 {[%clk 0:02:55]} 11. Be3 {[%clk 0:02:24]}  O-O {[%clk 0:02:52]} 12. h3 {[%clk 0:02:24]}  Nd5 {[%clk 0:02:49]} 13. Nc3 {[%clk 0:02:22]}  Nxe3 {[%clk 0:02:48]} 14. fxe3 {[%clk 0:02:23]}  h6 {[%clk 0:02:28]} 15. Qe1 {[%clk 0:02:20]}  a6 {[%clk 0:02:26]} 16. Ne4 {[%clk 0:02:08]}  Qb4 {[%clk 0:02:24]} 17. Qg3 {[%clk 0:02:06]}  Bf5 {[%clk 0:02:20]} 18. Nc5 {[%clk 0:01:16]}  Kh7 {[%clk 0:02:16]} 19. Rac1 {[%clk 0:01:12]}  Rac8 {[%clk 0:02:02]} 20. Nh4 {[%clk 0:01:11]}  e6 {[%clk 0:01:58]} 21. Nxf5 {[%clk 0:00:59]}  exf5 {[%clk 0:01:58]} 22. Kh1 {[%clk 0:00:55]}  Qd2 {[%clk 0:01:30]} 23. Rc2 {[%clk 0:00:51]}  Qa5 {[%clk 0:01:29]} 24. Nxb7 {[%clk 0:00:47]}  Qb5 {[%clk 0:01:23]} 25. Rfc1 {[%clk 0:00:40]}  Qxb7 {[%clk 0:01:23]} 26. Bd5 {[%clk 0:00:41]}  Qb8 {[%clk 0:01:06]} 27. Qxb8 {[%clk 0:00:40]}  Rxb8 {[%clk 0:01:07]} 28. Bxc6 {[%clk 0:00:40]}  a5 {[%clk 0:01:02]} 29. b3 {[%clk 0:00:40]}  Rfd8 {[%clk 0:00:54]} 30. g3 {[%clk 0:00:40]}  Rd6 {[%clk 0:00:52]} 31. Rc5 {[%clk 0:00:35]}  Re6 {[%clk 0:00:49]} 32. R1c3 {[%clk 0:00:28]}  Bf8 {[%clk 0:00:46]} 33. R5c4 {[%clk 0:00:20]}  Bb4 {[%clk 0:00:45]} 34. Rd3 {[%clk 0:00:20]}  Kg7 {[%clk 0:00:45]} 35. Kg2 {[%clk 0:00:20]}  h5 {[%clk 0:00:45]} 36. Kf3 {[%clk 0:00:20]}  Rb6 {[%clk 0:00:43]} 37. d5 {[%clk 0:00:21]}  Rd6 {[%clk 0:00:42]} 38. Rc1 {[%clk 0:00:18]}  Rb8 {[%clk 0:00:43]} 39. Rc2 {[%clk 0:00:17]}  Rc8 {[%clk 0:00:42]} 40. Rd4 {[%clk 0:00:16]}  Rc7 {[%clk 0:00:42]} 41. Rdc4 {[%clk 0:00:16]}  Re7 {[%clk 0:00:42]} 42. Rc1 {[%clk 0:00:16]}  Bd2 {[%clk 0:00:40]} 43. R1c3 {[%clk 0:00:17]}  Bxc3 {[%clk 0:00:40]} 44. Rxc3 {[%clk 0:00:17]}  Kf6 {[%clk 0:00:39]} 45. Rc5 {[%clk 0:00:18]}  Re5 {[%clk 0:00:38]} 46. a3 {[%clk 0:00:12]}  g5 {[%clk 0:00:37]} 47. Rc4 {[%clk 0:00:08]}  g4+ {[%clk 0:00:37]} 48. hxg4 {[%clk 0:00:08]}  fxg4+ {[%clk 0:00:36]} 49. Kf4 {[%clk 0:00:06]}  Rf5+ {[%clk 0:00:33]} 50. Ke4 {[%clk 0:00:06]}  Rf3 {[%clk 0:00:34]} 51. b4 {[%clk 0:00:04]}  axb4 {[%clk 0:00:34]} 52. axb4 {[%clk 0:00:05]}  Rxg3 {[%clk 0:00:34]} 53. b5 {[%clk 0:00:06]}  Rg1 {[%clk 0:00:35]} 54. b6 {[%clk 0:00:06]}  Rb1 {[%clk 0:00:35]} 55. b7 {[%clk 0:00:06]}  Rb2 {[%clk 0:00:27]} 56. Rc5 {[%clk 0:00:06]}  g3 {[%clk 0:00:25]} 57. Rc1 {[%clk 0:00:05]}  h4 {[%clk 0:00:23]} 58. Kf3 {[%clk 0:00:05]}  Kg5 {[%clk 0:00:22]} 59. e4 {[%clk 0:00:04]}  Rf6+ {[%clk 0:00:20]} 60. Ke3 {[%clk 0:00:04]}  g2 {[%clk 0:00:21]} 61. Rg1 {[%clk 0:00:02]}  h3 {[%clk 0:00:22]} 62. e5 {[%clk 0:00:01]}  Rf1 {[%clk 0:00:22]} 63. d6 {[%clk 0:00:02]}  Rxg1 {[%clk 0:00:22]} 64. d7 {[%clk 0:00:00]}  Re1+ {[%clk 0:00:22]} 0-1


[Site "https://www.chess.com"]

[Event "Titled Tuesday Blitz July 18 Late 2023"]
[White "Llorente Zaro, Alfonso"]
[Black "Manukian, Artak"]
[WhiteFideId "2254131"]
[BlackFideId "13301373"]
[WhiteElo "2745"]
[BlackElo "2427"]
[Result "1-0"]
[Round "1"]
[TimeControl "180+2"]
[Date "2023.07.18"]
[WhiteClock "0:00:10"]
[BlackClock "0:00:31"]
[Board "58"]

1. e4 {[%clk 0:02:58]}  c6 {[%clk 0:02:59]} 2. d4 {[%clk 0:02:53]}  d5 {[%clk 0:03:00]} 3. exd5 {[%clk 0:02:54]}  cxd5 {[%clk 0:02:58]} 4. Bf4 {[%clk 0:02:55]}  Nc6 {[%clk 0:02:57]} 5. c3 {[%clk 0:02:55]}  Nf6 {[%clk 0:02:56]} 6. Bd3 {[%clk 0:02:55]}  Bg4 {[%clk 0:02:56]} 7. Qb3 {[%clk 0:02:55]}  Qb6 {[%clk 0:02:53]} 8. Nd2 {[%clk 0:02:52]}  e6 {[%clk 0:02:49]} 9. h3 {[%clk 0:02:53]}  Bh5 {[%clk 0:02:49]} 10. Ngf3 {[%clk 0:02:53]}  Bg6 {[%clk 0:02:48]} 11. Be2 {[%clk 0:02:52]}  Be7 {[%clk 0:02:43]} 12. O-O {[%clk 0:02:51]}  O-O {[%clk 0:02:43]} 13. Ne5 {[%clk 0:02:51]}  Nxe5 {[%clk 0:02:41]} 14. Qxb6 {[%clk 0:02:50]}  axb6 {[%clk 0:02:40]} 15. Bxe5 {[%clk 0:02:50]}  Rfc8 {[%clk 0:02:33]} 16. a3 {[%clk 0:02:48]}  Nd7 {[%clk 0:02:26]} 17. Bh2 {[%clk 0:02:47]}  Nb8 {[%clk 0:02:19]} 18. g4 {[%clk 0:02:45]}  Nc6 {[%clk 0:02:09]} 19. Kg2 {[%clk 0:02:45]}  Na5 {[%clk 0:02:05]} 20. Bg3 {[%clk 0:02:40]}  Nc4 {[%clk 0:02:04]} 21. Nxc4 {[%clk 0:02:29]}  dxc4 {[%clk 0:02:05]} 22. Bf3 {[%clk 0:02:29]}  Ra7 {[%clk 0:02:03]} 23. Rae1 {[%clk 0:02:29]}  Bd3 {[%clk 0:02:01]} 24. Rg1 {[%clk 0:02:25]}  b5 {[%clk 0:02:00]} 25. h4 {[%clk 0:02:15]}  Rd8 {[%clk 0:01:49]} 26. h5 {[%clk 0:02:01]}  Bd6 {[%clk 0:01:46]} 27. Bxd6 {[%clk 0:01:58]}  Rxd6 {[%clk 0:01:47]} 28. Re5 {[%clk 0:01:58]}  b4 {[%clk 0:01:37]} 29. axb4 {[%clk 0:01:51]}  Ra2 {[%clk 0:01:37]} 30. Bxb7 {[%clk 0:01:36]}  Rxb2 {[%clk 0:01:34]} 31. Rc1 {[%clk 0:01:33]}  h6 {[%clk 0:01:24]} 32. Ra5 {[%clk 0:01:32]}  f5 {[%clk 0:01:16]} 33. gxf5 {[%clk 0:01:26]}  Bxf5 {[%clk 0:01:15]} 34. Kg3 {[%clk 0:01:26]}  Kf7 {[%clk 0:01:10]} 35. Re1 {[%clk 0:01:17]}  Rb3 {[%clk 0:01:07]} 36. Re3 {[%clk 0:01:17]}  Bd3 {[%clk 0:01:07]} 37. Bc8 {[%clk 0:00:39]}  Rxc3 {[%clk 0:01:01]} 38. Ra7+ {[%clk 0:00:37]}  Kf6 {[%clk 0:00:52]} 39. Rf3+ {[%clk 0:00:35]}  Kg5 {[%clk 0:00:49]} 40. Rxg7+ {[%clk 0:00:35]}  Kxh5 {[%clk 0:00:49]} 41. Bb7 {[%clk 0:00:13]}  Rxd4 {[%clk 0:00:34]} 42. Bc6 {[%clk 0:00:12]}  Rb3 {[%clk 0:00:32]} 43. Be8+ {[%clk 0:00:11]}  Bg6 {[%clk 0:00:31]} 44. Bxg6+ {[%clk 0:00:09]}  Kg5 {[%clk 0:00:31]} 45. Be8# {[%clk 0:00:10]} 1-0


[Site "https://www.chess.com"]

[Event "Titled Tuesday Blitz July 18 Late 2023"]
[White "NLLO777"]
[Black "Leiva, Gianmarco"]
[BlackFideId "3804399"]
[WhiteElo "2427"]
[BlackElo "2745"]
[Result "1-0"]
[Round "1"]
[TimeControl "180+2"]
[Date "2023.07.18"]
[WhiteClock "0:00:01"]
[BlackClock "0:00:00"]
[Board "59"]

1. d4 {[%clk 0:03:00]}  Nf6 {[%clk 0:02:57]} 2. c4 {[%clk 0:03:00]}  e6 {[%clk 0:02:57]} 3. Nf3 {[%clk 0:02:59]}  d5 {[%clk 0:02:57]} 4. g3 {[%clk 0:02:59]}  Bb4+ {[%clk 0:02:57]} 5. Bd2 {[%clk 0:02:59]}  Be7 {[%clk 0:02:57]} 6. Bg2 {[%clk 0:02:59]}  O-O {[%clk 0:02:58]} 7. O-O {[%clk 0:03:00]}  c6 {[%clk 0:02:58]} 8. Qc2 {[%clk 0:03:00]}  Nbd7 {[%clk 0:02:58]} 9. Bf4 {[%clk 0:02:58]}  a5 {[%clk 0:02:55]} 10. Nbd2 {[%clk 0:02:58]}  a4 {[%clk 0:02:50]} 11. e4 {[%clk 0:02:53]}  b6 {[%clk 0:02:27]} 12. cxd5 {[%clk 0:02:37]}  cxd5 {[%clk 0:02:25]} 13. e5 {[%clk 0:02:34]}  Ne8 {[%clk 0:02:21]} 14. h4 {[%clk 0:02:30]}  a3 {[%clk 0:02:15]} 15. Rfc1 {[%clk 0:02:25]}  axb2 {[%clk 0:02:12]} 16. Qxb2 {[%clk 0:02:23]}  Ba3 {[%clk 0:02:12]} 17. Qb3 {[%clk 0:02:09]}  Bxc1 {[%clk 0:02:10]} 18. Rxc1 {[%clk 0:02:10]}  Ba6 {[%clk 0:02:06]} 19. h5 {[%clk 0:02:07]}  h6 {[%clk 0:01:58]} 20. Qe3 {[%clk 0:02:07]}  Rc8 {[%clk 0:01:55]} 21. Rxc8 {[%clk 0:02:04]}  Qxc8 {[%clk 0:01:55]} 22. Bxh6 {[%clk 0:01:59]}  gxh6 {[%clk 0:01:52]} 23. Qxh6 {[%clk 0:01:59]}  Bd3 {[%clk 0:01:42]} 24. Qg5+ {[%clk 0:01:06]}  Kh7 {[%clk 0:01:22]} 25. Qe7 {[%clk 0:01:01]}  Ng7 {[%clk 0:00:56]} 26. Ng5+ {[%clk 0:00:39]}  Kg8 {[%clk 0:00:56]} 27. h6 {[%clk 0:00:23]}  Qc1+ {[%clk 0:00:50]} 28. Nf1 {[%clk 0:00:18]}  Nf5 {[%clk 0:00:34]} 29. h7+ {[%clk 0:00:16]}  Kh8 {[%clk 0:00:16]} 30. Nxf7+ {[%clk 0:00:14]}  Rxf7 {[%clk 0:00:04]} 31. Qxf7 {[%clk 0:00:14]}  Qg5 {[%clk 0:00:01]} 32. Qxd7 {[%clk 0:00:12]}  Ng7 {[%clk 0:00:01]} 33. f4 {[%clk 0:00:07]}  Qg6 {[%clk 0:00:01]} 34. Kf2 {[%clk 0:00:07]}  Kxh7 {[%clk 0:00:01]} 35. Ne3 {[%clk 0:00:05]}  Be4 {[%clk 0:00:01]} 36. Bh3 {[%clk 0:00:04]}  Bf5 {[%clk 0:00:01]} 37. Bxf5 {[%clk 0:00:04]}  exf5 {[%clk 0:00:02]} 38. Qd6 {[%clk 0:00:02]}  Qh5 {[%clk 0:00:00]} 39. Qxd5 {[%clk 0:00:01]} 1-0


[Site "https://www.chess.com"]

[Event "Titled Tuesday Blitz July 18 Late 2023"]
[White "Meshkovs, Nikita"]
[Black "Delorme, Axel"]
[WhiteFideId "11602740"]
[BlackFideId "632023"]
[WhiteElo "2742"]
[BlackElo "2421"]
[Result "1/2-1/2"]
[Round "1"]
[TimeControl "180+2"]
[Date "2023.07.18"]
[WhiteClock "0:00:17"]
[BlackClock "0:00:05"]
[Board "60"]

1. d4 {[%clk 0:02:59]}  d5 {[%clk 0:02:58]} 2. Nf3 {[%clk 0:02:57]}  e6 {[%clk 0:02:59]} 3. c4 {[%clk 0:02:56]}  c6 {[%clk 0:02:59]} 4. Nc3 {[%clk 0:02:56]}  dxc4 {[%clk 0:02:59]} 5. g3 {[%clk 0:02:55]}  b5 {[%clk 0:02:59]} 6. Bg2 {[%clk 0:02:55]}  Bb7 {[%clk 0:02:57]} 7. Ne5 {[%clk 0:02:45]}  a6 {[%clk 0:02:54]} 8. O-O {[%clk 0:02:40]}  Nf6 {[%clk 0:02:53]} 9. b3 {[%clk 0:02:39]}  cxb3 {[%clk 0:02:51]} 10. Qxb3 {[%clk 0:02:39]}  Qxd4 {[%clk 0:02:36]} 11. Bf4 {[%clk 0:02:39]}  Qb6 {[%clk 0:02:36]} 12. a4 {[%clk 0:02:34]}  Be7 {[%clk 0:02:31]} 13. Rfd1 {[%clk 0:02:25]}  Nd5 {[%clk 0:02:18]} 14. a5 {[%clk 0:01:54]}  Qa7 {[%clk 0:02:05]} 15. Ne4 {[%clk 0:01:17]}  Nxf4 {[%clk 0:01:58]} 16. gxf4 {[%clk 0:01:13]}  O-O {[%clk 0:01:48]} 17. f5 {[%clk 0:00:58]}  exf5 {[%clk 0:01:33]} 18. Nd6 {[%clk 0:00:57]}  Bxd6 {[%clk 0:01:28]} 19. Rxd6 {[%clk 0:00:51]}  c5 {[%clk 0:01:25]} 20. Nxf7 {[%clk 0:00:48]}  Bxg2 {[%clk 0:00:55]} 21. Nh6+ {[%clk 0:00:32]}  Kh8 {[%clk 0:00:55]} 22. Kxg2 {[%clk 0:00:32]}  Qb7+ {[%clk 0:00:38]} 23. f3 {[%clk 0:00:30]}  Nc6 {[%clk 0:00:28]} 24. Rxc6 {[%clk 0:00:30]}  gxh6 {[%clk 0:00:22]} 25. Qc3+ {[%clk 0:00:29]}  Qg7+ {[%clk 0:00:18]} 26. Qxg7+ {[%clk 0:00:30]}  Kxg7 {[%clk 0:00:19]} 27. Rxc5 {[%clk 0:00:31]}  Rac8 {[%clk 0:00:18]} 28. Rd5 {[%clk 0:00:31]}  b4 {[%clk 0:00:15]} 29. Rd6 {[%clk 0:00:30]}  Rf6 {[%clk 0:00:15]} 30. Rd7+ {[%clk 0:00:30]}  Rf7 {[%clk 0:00:15]} 31. Rd6 {[%clk 0:00:30]}  Rf6 {[%clk 0:00:15]} 32. Rd4 {[%clk 0:00:31]}  Rb8 {[%clk 0:00:15]} 33. Rb1 {[%clk 0:00:31]}  b3 {[%clk 0:00:14]} 34. Rd3 {[%clk 0:00:31]}  Re6 {[%clk 0:00:12]} 35. Kf2 {[%clk 0:00:31]}  Re5 {[%clk 0:00:12]} 36. Rdxb3 {[%clk 0:00:28]}  Rxb3 {[%clk 0:00:11]} 37. Rxb3 {[%clk 0:00:29]}  Rxa5 {[%clk 0:00:12]} 38. Rb7+ {[%clk 0:00:29]}  Kg6 {[%clk 0:00:12]} 39. Rb6+ {[%clk 0:00:30]}  Kg7 {[%clk 0:00:13]} 40. e3 {[%clk 0:00:27]}  Ra2+ {[%clk 0:00:12]} 41. Kg3 {[%clk 0:00:27]}  a5 {[%clk 0:00:12]} 42. h4 {[%clk 0:00:27]}  Ra4 {[%clk 0:00:10]} 43. h5 {[%clk 0:00:26]}  Rb4 {[%clk 0:00:10]} 44. Ra6 {[%clk 0:00:27]}  a4 {[%clk 0:00:10]} 45. Ra5 {[%clk 0:00:26]}  Kf6 {[%clk 0:00:10]} 46. Ra7 {[%clk 0:00:27]}  Kg5 {[%clk 0:00:10]} 47. Rxh7 {[%clk 0:00:25]}  Kxh5 {[%clk 0:00:10]} 48. Rg7 {[%clk 0:00:25]}  a3 {[%clk 0:00:09]} 49. Ra7 {[%clk 0:00:25]}  Rb3 {[%clk 0:00:09]} 50. Kf4 {[%clk 0:00:25]}  Kg6 {[%clk 0:00:09]} 51. Ra6+ {[%clk 0:00:26]}  Kg7 {[%clk 0:00:09]} 52. Ra5 {[%clk 0:00:26]}  Kg6 {[%clk 0:00:09]} 53. Ra4 {[%clk 0:00:27]}  h5 {[%clk 0:00:07]} 54. Ra6+ {[%clk 0:00:26]}  Kg7 {[%clk 0:00:07]} 55. Re6 {[%clk 0:00:27]}  h4 {[%clk 0:00:07]} 56. Ra6 {[%clk 0:00:25]}  h3 {[%clk 0:00:07]} 57. Kg3 {[%clk 0:00:26]}  Rxe3 {[%clk 0:00:07]} 58. Kxh3 {[%clk 0:00:24]}  Rxf3+ {[%clk 0:00:07]} 59. Kh4 {[%clk 0:00:24]}  Rb3 {[%clk 0:00:06]} 60. Kg5 {[%clk 0:00:25]}  Rf3 {[%clk 0:00:06]} 61. Ra7+ {[%clk 0:00:24]}  Kf8 {[%clk 0:00:07]} 62. Kf6 {[%clk 0:00:24]}  Ke8 {[%clk 0:00:07]} 63. Ke6 {[%clk 0:00:25]}  Kd8 {[%clk 0:00:04]} 64. Kd6 {[%clk 0:00:26]}  Kc8 {[%clk 0:00:04]} 65. Kc6 {[%clk 0:00:26]}  Kb8 {[%clk 0:00:04]} 66. Ra4 {[%clk 0:00:19]}  Rc3+ {[%clk 0:00:04]} 67. Kd5 {[%clk 0:00:17]}  f4 {[%clk 0:00:04]} 68. Rxf4 {[%clk 0:00:16]}  a2 {[%clk 0:00:04]} 69. Rb4+ {[%clk 0:00:16]}  Kc8 {[%clk 0:00:03]} 70. Ra4 {[%clk 0:00:16]}  Rc2 {[%clk 0:00:04]} 71. Kd4 {[%clk 0:00:16]}  Kd7 {[%clk 0:00:04]} 72. Ke3 {[%clk 0:00:16]}  Rh2 {[%clk 0:00:05]} 73. Kd3 {[%clk 0:00:16]}  Kc6 {[%clk 0:00:05]} 74. Kc3 {[%clk 0:00:16]}  Kb5 {[%clk 0:00:06]} 75. Ra8 {[%clk 0:00:17]}  Kc5 {[%clk 0:00:06]} 76. Kb3 {[%clk 0:00:16]}  Kd4 {[%clk 0:00:05]} 77. Rxa2 {[%clk 0:00:16]}  Rxa2 {[%clk 0:00:05]} 78. Kxa2 {[%clk 0:00:17]} 1/2-1/2


[Site "https://www.chess.com"]

[Event "Titled Tuesday Blitz July 18 Late 2023"]
[White "Fernandez, Daniel"]
[Black "Herman, Daniel"]
[WhiteFideId "2015390"]
[BlackFideId "30935008"]
[WhiteElo "2741"]
[BlackElo "2419"]
[Result "1-0"]
[Round "1"]
[TimeControl "180+2"]
[Date "2023.07.18"]
[WhiteClock "0:00:03"]
[BlackClock "0:00:00"]
[Board "62"]

1. Nf3 {[%clk 0:02:59]}  g6 {[%clk 0:02:58]} 2. e3 {[%clk 0:02:59]}  Bg7 {[%clk 0:02:59]} 3. d4 {[%clk 0:03:00]}  Nf6 {[%clk 0:02:58]} 4. b3 {[%clk 0:03:00]}  O-O {[%clk 0:02:58]} 5. Bb2 {[%clk 0:03:01]}  d6 {[%clk 0:02:58]} 6. Be2 {[%clk 0:03:02]}  Nbd7 {[%clk 0:02:54]} 7. Nbd2 {[%clk 0:03:01]}  e5 {[%clk 0:02:54]} 8. dxe5 {[%clk 0:03:00]}  Ng4 {[%clk 0:02:55]} 9. Nc4 {[%clk 0:03:00]}  Ndxe5 {[%clk 0:02:47]} 10. Nfxe5 {[%clk 0:03:00]}  Nxe5 {[%clk 0:02:47]} 11. Nxe5 {[%clk 0:02:59]}  dxe5 {[%clk 0:02:36]} 12. Qxd8 {[%clk 0:02:58]}  Rxd8 {[%clk 0:02:37]} 13. a4 {[%clk 0:02:58]}  Bf5 {[%clk 0:02:32]} 14. Rc1 {[%clk 0:02:57]}  Rd7 {[%clk 0:02:24]} 15. g4 {[%clk 0:02:36]}  Be4 {[%clk 0:02:19]} 16. f3 {[%clk 0:02:35]}  Bc6 {[%clk 0:02:18]} 17. e4 {[%clk 0:02:32]}  Rad8 {[%clk 0:02:10]} 18. Bc3 {[%clk 0:02:28]}  Bh6 {[%clk 0:02:04]} 19. Rd1 {[%clk 0:02:27]}  Rxd1+ {[%clk 0:02:03]} 20. Bxd1 {[%clk 0:02:28]}  Bf4 {[%clk 0:02:03]} 21. Be2 {[%clk 0:02:28]}  Kg7 {[%clk 0:01:36]} 22. Bb5 {[%clk 0:02:26]}  Rd6 {[%clk 0:01:18]} 23. Bb4 {[%clk 0:02:15]}  Rd4 {[%clk 0:01:18]} 24. Bxc6 {[%clk 0:02:00]}  Rxb4 {[%clk 0:01:15]} 25. Bd5 {[%clk 0:02:00]}  Rd4 {[%clk 0:01:14]} 26. Bxb7 {[%clk 0:01:08]}  Rd2 {[%clk 0:01:13]} 27. c4 {[%clk 0:01:00]}  Rb2 {[%clk 0:01:06]} 28. O-O {[%clk 0:01:00]}  Bxh2+ {[%clk 0:01:05]} 29. Kh1 {[%clk 0:00:59]}  Bf4 {[%clk 0:01:00]} 30. Bd5 {[%clk 0:00:54]}  Rxb3 {[%clk 0:00:55]} 31. a5 {[%clk 0:00:53]}  Rb2 {[%clk 0:00:50]} 32. a6 {[%clk 0:00:52]}  h5 {[%clk 0:00:40]} 33. gxh5 {[%clk 0:00:49]}  gxh5 {[%clk 0:00:41]} 34. Rg1+ {[%clk 0:00:48]}  Kf6 {[%clk 0:00:39]} 35. Rg8 {[%clk 0:00:48]}  h4 {[%clk 0:00:32]} 36. Rh8 {[%clk 0:00:48]}  Bg3 {[%clk 0:00:29]} 37. c5 {[%clk 0:00:38]}  Kg5 {[%clk 0:00:25]} 38. Rh7 {[%clk 0:00:22]}  Rb1+ {[%clk 0:00:12]} 39. Kg2 {[%clk 0:00:20]}  Rb2+ {[%clk 0:00:13]} 40. Kf1 {[%clk 0:00:21]}  Rf2+ {[%clk 0:00:08]} 41. Kg1 {[%clk 0:00:20]}  Rxf3 {[%clk 0:00:09]} 42. Bxf7 {[%clk 0:00:20]}  Ra3 {[%clk 0:00:07]} 43. Bd5 {[%clk 0:00:09]}  Rxa6 {[%clk 0:00:07]} 44. c6 {[%clk 0:00:09]}  Ra1+ {[%clk 0:00:06]} 45. Kg2 {[%clk 0:00:09]}  a5 {[%clk 0:00:07]} 46. Rxc7 {[%clk 0:00:07]}  a4 {[%clk 0:00:06]} 47. Rg7+ {[%clk 0:00:07]}  Kf4 {[%clk 0:00:06]} 48. c7 {[%clk 0:00:06]}  Rc1 {[%clk 0:00:06]} 49. Be6 {[%clk 0:00:04]}  h3+ {[%clk 0:00:05]} 50. Bxh3 {[%clk 0:00:02]}  a3 {[%clk 0:00:04]} 51. c8=Q {[%clk 0:00:01]}  Rxc8 {[%clk 0:00:01]} 52. Bxc8 {[%clk 0:00:02]}  Be1 {[%clk 0:00:01]} 53. Ra7 {[%clk 0:00:03]}  Bb4 {[%clk 0:00:00]} 54. Ra4 {[%clk 0:00:03]} 1-0


[Site "https://www.chess.com"]